bitfinex/quotes_ETHUSD_20230403
["timestamp","ask_amount","ask_price","bid_price","bid_amount"]
[1680489543403,0.60048008,1776.1,1776.0,1.72184166]
[1680489544199,0.50048008,1776.1,1776.0,1.72184166]
[1680489545199,1.37000001,1776.2,1776.0,1.72184166]
[1680489545380,1.37000001,1776.2,1776.0,4.50960894]
[1680489546005,0.49830364,1776.1,1776.0,4.50960894]
[1680489547189,1.37000001,1776.2,1776.0,5.1905997]
[1680489547394,0.11586074,1776.4,1776.2,0.5]
[1680489547595,0.11000001,1776.4,1776.3,11.79458866]
[1680489547769,0.11000001,1776.4,1776.3,14.86395296]
[1680489547973,0.11000001,1776.4,1776.3,13.98750158]
[1680489548382,0.11000001,1776.4,1776.3,13.6974459]
[1680489549390,0.11000001,1776.4,1776.3,13.70102831]
[1680489551112,0.11000001,1776.4,1776.3,12.82496531]
[1680489551486,0.11000001,1776.4,1776.3,6.66496531]
[1680489552088,0.55619026,1776.4,1776.3,6.66496531]
[1680489552876,0.55619026,1776.4,1776.3,13.47102831]
[1680489553105,0.55619026,1776.4,1776.3,12.59496531]
[1680489553308,0.55619026,1776.4,1776.3,13.47102831]
[1680489554807,0.55619026,1776.4,1776.3,13.46886513]
[1680489555006,0.55619026,1776.4,1776.3,12.59280213]
[1680489555804,0.55619026,1776.4,1776.3,6.66280213]
[1680489577504,0.55328081,1776.4,1776.3,6.66280213]
[1680489577826,0.55328081,1776.4,1776.3,4.76155651]
[1680489578001,0.55328081,1776.4,1776.3,4.75955651]
[1680489581635,0.55328081,1776.4,1776.3,4.7559741]
[1680489584710,1.28860198,1776.4,1776.3,0.28148]
[1680489584914,2.00360198,1776.4,1776.3,0.28148]
[1680489585105,2.21496218,1776.4,1776.3,0.28148]
[1680489590930,2.19464101,1776.4,1776.3,0.28148]
[1680489594142,2.19464101,1776.4,1776.3,0.84444]
[1680489594742,1.47964101,1776.4,1776.3,0.84444]
[1680489599153,1.26828081,1776.4,1776.3,0.84444]
[1680489600968,1.26828081,1776.4,1776.3,3.63220728]
[1680489601771,1.26577901,1776.4,1776.3,3.63220728]
[1680489604872,0.55077901,1776.4,1776.3,3.63220728]
[1680489613951,0.55077901,1776.4,1776.3,3.63820728]
[1680489614156,0.55077901,1776.4,1776.3,5.10749788]
[1680489614356,0.55077901,1776.4,1776.3,5.10949788]
[1680489614559,0.55077901,1776.4,1776.3,4.23343488]
[1680489614751,0.55077901,1776.4,1776.3,4.23143488]
[1680489615990,0.55077901,1776.4,1776.3,5.10749788]
[1680489616165,0.55077901,1776.4,1776.3,5.10949788]
[1680489617090,0.55077901,1776.4,1776.3,4.23343488]
[1680489617260,0.55077901,1776.4,1776.3,4.23143488]
[1680489617792,0.55077901,1776.4,1776.3,5.10749788]
[1680489617967,0.55077901,1776.4,1776.3,5.10949788]
[1680489621793,0.55077901,1776.4,1776.3,3.64020728]
[1680489621999,0.55077901,1776.4,1776.3,3.63820728]
[1680489622158,0.54796771,1776.4,1776.3,3.63220728]
[1680489623886,0.54796771,1776.4,1776.3,0.84444]
[1680489633025,0.10177746,1776.4,1776.3,0.84444]
[1680489646209,0.0985572,1776.4,1776.3,0.84444]
[1680489647356,0.0985572,1776.4,1776.3,3.91685258]
[1680489652726,0.0985572,1776.4,1776.3,9.19015258]
[1680489652938,0.0985572,1776.4,1776.3,9.19215258]
[1680489659773,0.0985572,1776.4,1776.3,8.90750728]
[1680489660188,0.0985572,1776.4,1776.3,6.11974]
[1680489664314,0.0985572,1776.4,1776.3,5.55678]
[1680489664477,0.0985572,1776.4,1776.3,0.28348]
[1680489664793,0.0985572,1776.4,1776.3,0.28148]
[1680489665183,0.19081292,1776.4,1776.3,0.28148]
[1680489670376,0.18875271,1776.4,1776.3,0.28148]
[1680489672114,0.09649699,1776.4,1776.3,0.28148]
[1680489681087,0.820497,1776.5,1776.3,0.28148]
[1680489682007,0.820497,1776.5,1776.3,0.84444]
[1680489682194,0.106497,1776.5,1776.3,0.84444]
[1680489683295,0.106497,1776.5,1776.4,2.78776728]
[1680489683499,0.106497,1776.5,1776.4,5.12124801]
[1680489683692,0.106497,1776.5,1776.4,5.12324801]
[1680489703121,0.10428405,1776.5,1776.4,5.12324801]
[1680489712604,0.10428405,1776.5,1776.4,4.76002728]
[1680489712939,0.10428405,1776.5,1776.4,4.75802728]
[1680489713143,0.10428405,1776.5,1776.4,4.75439421]
[1680489713644,0.10428405,1776.5,1776.4,0.84439]
[1680489724543,0.10428405,1776.5,1776.3,0.28347]
[1680489724743,0.18551245,1776.5,1776.3,0.28147]
[1680489725156,0.18551245,1776.5,1776.2,1.157543]
[1680489725685,0.18551245,1776.5,1776.2,0.28148]
[1680489732874,0.10428405,1776.5,1776.2,3.06924728]
[1680489733083,0.10428405,1776.5,1776.3,2.79134969]
[1680489733425,0.10428405,1776.5,1776.4,1.97026]
[1680489735115,0.10121266,1776.5,1776.4,1.97026]
[1680489742931,0.10121266,1776.5,1776.4,4.75802728]
[1680489743136,0.10121266,1776.5,1776.4,5.71924825]
[1680489743295,0.10121266,1776.5,1776.4,5.72124825]
[1680489751175,0.10121266,1776.5,1776.4,5.71793404]
[1680489759092,0.10121266,1776.5,1776.4,4.75671307]
[1680489759250,0.10121266,1776.5,1776.4,4.75471307]
[1680489760377,0.10121266,1776.5,1776.4,0.27814579]
[1680489760551,0.12153383,1776.5,1776.4,0.28146]
[1680489763460,0.12153383,1776.5,1776.4,0.84439]
[1680489771695,0.11889356,1776.5,1776.4,0.84439]
[1680489776172,0.09857239,1776.5,1776.4,0.84439]
[1680489779013,0.09857239,1776.5,1776.4,5.84439]
[1680489779179,0.09857239,1776.5,1776.4,5.84639]
[1680489780711,0.09857239,1776.5,1776.4,5.84412351]
[1680489781487,0.09857239,1776.5,1776.4,8.63189079]
[1680489781687,0.09857239,1776.5,1776.4,10.21338517]
[1680489791999,0.09857239,1776.5,1776.4,11.08944817]
[1680489803759,0.0949954,1776.5,1776.4,11.08944817]
[1680489805757,0.0949954,1776.5,1776.4,10.21338517]
[1680489806054,0.0949954,1776.5,1776.4,8.63189079]
[1680489810324,0.0949954,1776.5,1776.4,9.50795379]
[1680489822990,0.11531657,1776.5,1776.4,9.50795379]
[1680489823294,0.11531657,1776.5,1776.4,8.63189079]
[1680489825778,0.11531657,1776.5,1776.4,5.28119351]
[1680489827615,0.11200037,1776.5,1776.4,5.28119351]
[1680489834307,0.11200037,1776.5,1776.4,5.84412351]
[1680489842584,0.11200037,1776.5,1776.4,5.002]
[1680489842796,0.82600037,1776.5,1776.4,5.002]
[1680489842992,0.97980041,1776.5,1776.4,5.002]
[1680489849234,2.8312185,1776.5,1776.4,5.002]
[1680489849393,2.83576343,1776.5,1776.4,5.002]
[1680489849731,5.83576343,1776.5,1776.4,5.002]
[1680489850036,5.83776343,1776.5,1776.4,5.002]
[1680489850239,5.69704343,1776.5,1776.4,5.002]
[1680489850737,5.83776343,1776.5,1776.4,5.002]
[1680489850940,5.69704343,1776.5,1776.4,5.002]
[1680489852134,5.83776343,1776.5,1776.4,5.002]
[1680489854250,5.69704343,1776.5,1776.4,5.002]
[1680489856350,4.96372226,1776.5,1776.4,5.002]
[1680489856644,4.96172226,1776.5,1776.4,5.002]
[1680489862075,5.67172226,1776.5,1776.4,5.002]
[1680489862231,5.67372226,1776.5,1776.4,5.002]
[1680489869080,5.90372226,1776.5,1776.4,5.002]
[1680489869875,5.18972226,1776.5,1776.4,5.002]
[1680489870888,4.95972226,1776.5,1776.4,5.002]
[1680489871085,4.95772226,1776.5,1776.4,5.002]
[1680489873088,3.96002417,1776.5,1776.4,5.002]
[1680489873296,0.80622413,1776.5,1776.4,5.002]
[1680489874062,0.09622413,1776.5,1776.4,5.28346]
[1680489874266,0.09622413,1776.5,1776.4,5.002]
[1680489874462,0.0916792,1776.5,1776.4,5.002]
[1680489874775,0.0916792,1776.5,1776.4,4.99812151]
[1680489874986,0.0916792,1776.5,1776.4,4.99612151]
[1680489879198,0.82600037,1776.5,1776.4,4.99612151]
[1680489879500,1.00828378,1776.5,1776.4,4.99612151]
[1680489882802,0.82600037,1776.5,1776.4,4.99612151]
[1680489882981,0.0916792,1776.5,1776.4,5.27758151]
[1680489883176,0.0916792,1776.5,1776.4,4.99812151]
[1680489883378,0.0916792,1776.5,1776.4,5.27758151]
[1680489883581,0.0916792,1776.5,1776.4,5.27958151]
[1680489883783,0.0916792,1776.5,1776.4,4.99812151]
[1680489884092,0.0916792,1776.5,1776.4,5.27758151]
[1680489884296,0.0916792,1776.5,1776.4,5.27958151]
[1680489892219,0.0916792,1776.5,1776.4,4.99812151]
[1680489892378,0.0916792,1776.5,1776.4,4.99612151]
[1680489894504,2.32729369,1776.5,1776.4,4.99612151]
[1680489894814,6.16373143,1776.5,1776.4,4.99612151]
[1680489894992,6.16573143,1776.5,1776.4,5.00212151]
[1680489895189,6.17027636,1776.5,1776.4,4.99812151]
[1680489895387,6.17027636,1776.5,1776.4,4.99612151]
[1680489895978,6.31099636,1776.5,1776.4,4.99612151]
[1680489896614,5.45727636,1776.5,1776.4,4.99612151]
[1680489897812,0.88889205,1776.5,1776.4,4.99612151]
[1680489898013,0.8016792,1776.5,1776.4,4.99612151]
[1680489898220,0.0916792,1776.5,1776.4,5.84651151]
[1680489898436,0.08814918,1776.5,1776.4,5.84251151]
[1680489899328,0.08814918,1776.5,1776.4,5.84851151]
[1680489899639,0.11000001,1776.7,1776.5,0.00358201]
[1680489899829,0.11000001,1776.7,1776.6,1.97004]
[1680489901233,0.11000001,1776.7,1776.6,0.28143]
[1680489903992,0.11000001,1776.7,1776.6,0.8443]
[1680489913351,0.11000001,1776.7,1776.5,0.56289]
[1680489913551,0.11000001,1776.7,1776.4,10.61934151]
[1680489913758,0.11000001,1776.7,1776.4,10.90079151]
[1680489914142,0.11454494,1776.7,1776.4,10.90079151]
[1680489914367,0.43699944,1776.7,1776.4,10.90079151]
[1680489914674,0.43699944,1776.7,1776.4,10.33787151]
[1680489915832,0.43699944,1776.7,1776.4,4.99812151]
[1680489916027,0.43699944,1776.7,1776.4,5.27758151]
[1680489916260,0.43699944,1776.7,1776.4,5.27958151]
[1680489919678,0.43699944,1776.7,1776.4,5.84251151]
[1680489921042,0.11454494,1776.7,1776.4,5.84251151]
[1680489921484,0.10763447,1776.7,1776.4,5.84851151]
[1680489921789,0.10763447,1776.7,1776.5,2.78776728]
[1680489921990,0.10763447,1776.7,1776.6,0.8443]
[1680489922149,0.10763447,1776.7,1776.6,3.63206728]
[1680489922346,0.10763447,1776.7,1776.6,0.75741373]
[1680489922546,0.10763447,1776.7,1776.6,0.28143]
[1680489923490,0.10763447,1776.7,1776.6,0.8443]
[1680489923841,0.10763447,1776.7,1776.5,0.84433]
[1680489926587,0.11154494,1777.1,1776.6,2.81065746]
[1680489926911,0.06000001,1777.1,1777.0,4.33713728]
[1680489927047,0.99684039,1777.2,1777.0,14.99909728]
[1680489927241,0.99684039,1777.2,1777.1,1.29088374]
[1680489927442,0.99684039,1777.2,1777.1,5.42271102]
[1680489927443,0.11000001,1777.2,1777.1,5.42271102]
[1680489927647,0.11000001,1777.2,1777.1,7.07699419]
[1680489927876,0.11000001,1777.2,1777.1,9.10678513]
[1680489928290,0.11000001,1777.2,1777.1,10.10678513]
[1680489928487,0.11000001,1777.2,1777.1,17.00699419]
[1680489928693,0.11000001,1777.2,1777.1,17.23699419]
[1680489928882,0.11000001,1777.2,1777.1,18.11305719]
[1680489929269,0.11000001,1777.2,1777.1,17.23699419]
[1680489929793,0.11000001,1777.2,1777.1,17.24299419]
[1680489931450,0.09896969,1777.2,1777.1,17.23699419]
[1680489932270,0.09896969,1777.2,1777.1,17.53722734]
[1680489935170,0.09896969,1777.2,1777.1,17.03722734]
[1680489935479,0.09896969,1777.2,1777.1,9.8543436]
[1680489935791,0.09896969,1777.2,1777.1,10.8543436]
[1680489939194,0.09896969,1777.2,1777.1,10.87722734]
[1680489942705,0.09896969,1777.2,1777.1,17.03722734]
[1680489945786,0.09896969,1777.2,1777.1,15.76922734]
[1680489952082,0.09896969,1777.2,1777.1,17.03722734]
[1680489952888,0.09896969,1777.2,1777.1,10.87722734]
[1680489954818,0.09896969,1777.2,1777.1,9.87722734]
[1680489956298,0.09571361,1777.2,1777.1,9.87722734]
[1680489960427,0.09571361,1777.2,1777.1,15.80722734]
[1680489960618,0.09571361,1777.2,1777.1,16.03722734]
[1680489961129,0.09571361,1777.2,1777.1,5.5863436]
[1680489961332,0.09571361,1777.2,1777.1,3.93406043]
[1680489961530,0.09571361,1777.2,1777.1,3.93206043]
[1680489964598,0.09571361,1777.2,1777.1,1.14429315]
[1680489964837,1.35071361,1777.2,1777.1,0.30023315]
[1680489965005,1.35071361,1777.2,1777.1,0.58158315]
[1680489965204,1.49678497,1777.2,1777.1,0.58158315]
[1680489965415,1.49678497,1777.2,1777.1,0.30023315]
[1680489966347,1.49678497,1777.2,1777.1,0.7946591]
[1680489966515,1.5003299,1777.2,1777.1,0.7946591]
[1680489967144,1.5003299,1777.2,1777.1,0.5133091]
[1680489972243,1.5003299,1777.2,1777.0,0.28137]
[1680489972449,0.15003299,1777.1,1777.0,0.28137]
[1680489973349,0.15003299,1777.1,1777.0,0.77121259]
[1680489974069,0.15003299,1777.1,1777.0,1.05258259]
[1680489974235,0.15003299,1777.1,1777.0,0.28137]
[1680489979649,0.15003299,1777.1,1776.7,0.28141]
[1680489979650,2.68603299,1777.1,1776.7,0.28141]
[1680489979849,1.268,1776.8,1776.7,0.28141]
[1680489980580,1.268,1776.8,1776.6,0.56286]
[1680489980772,1.268,1776.7,1776.6,0.28142]
[1680489981149,1.268,1776.7,1776.4,6.99999451]
[1680489981374,1.268,1776.7,1776.6,0.28143]
[1680489981577,1.3948,1776.7,1776.6,0.28143]
[1680489982345,1.3948,1776.7,1776.6,0.8443]
[1680489982776,1.3948,1776.7,1776.6,0.28143]
[1680489982988,1.39169846,1776.7,1776.4,5.00412151]
[1680489983152,1.268,1776.5,1776.4,5.27958151]
[1680489983353,1.268,1776.5,1776.4,5.00412151]
[1680489983765,1.268,1776.5,1776.4,4.99812151]
[1680489983958,1.268,1776.5,1776.4,4.99612151]
[1680489985143,1.3948,1776.5,1776.4,4.99612151]
[1680489989683,0.00354493,1776.7,1776.4,5.27758151]
[1680489989878,9.4972,1776.8,1776.4,5.27958151]
[1680489989879,9.50074493,1776.8,1776.4,5.27958151]
[1680489990078,9.50074493,1776.8,1776.4,5.84251151]
[1680489990284,1.268,1776.7,1776.4,5.27958151]
[1680489990477,2.21807449,1776.7,1776.4,5.27958151]
[1680489990693,1.268,1776.7,1776.4,5.27958151]
[1680489991862,9.50074493,1776.8,1776.4,5.27958151]
[1680489992062,10.76874493,1776.8,1776.4,5.27958151]
[1680489992771,10.90944493,1776.8,1776.4,4.99812151]
[1680489993085,10.90944493,1776.8,1776.4,4.99612151]
[1680489993392,1.09094449,1776.7,1776.4,4.99612151]
[1680489995602,1.268,1776.5,1776.4,4.99612151]
[1680490003807,1.268,1776.5,1776.4,5.27758151]
[1680490003995,2.27124302,1776.7,1776.4,5.27958151]
[1680490004186,6.44588732,1776.7,1776.4,5.27958151]
[1680490004386,6.44788732,1776.7,1776.4,5.27958151]
[1680490004886,6.44788732,1776.7,1776.4,4.99812151]
[1680490005087,6.44788732,1776.7,1776.4,4.99612151]
[1680490005675,6.44788732,1776.7,1776.4,5.27758151]
[1680490005871,6.44788732,1776.7,1776.4,5.27958151]
[1680490007977,0.5271243,1776.6,1776.4,4.99612151]
[1680490016903,0.5271243,1776.6,1776.4,5.27758151]
[1680490017104,0.5271243,1776.6,1776.4,5.27958151]
[1680490017889,0.5271243,1776.6,1776.4,4.99812151]
[1680490018085,0.5271243,1776.6,1776.4,4.99612151]
[1680490018916,0.5271243,1776.6,1776.4,5.27758151]
[1680490019223,0.5271243,1776.6,1776.4,5.27958151]
[1680490019417,0.5271243,1776.6,1776.4,4.99812151]
[1680490019616,0.5271243,1776.6,1776.4,4.99612151]
[1680490021224,1.268,1776.5,1776.4,4.99612151]
[1680490021430,1.81158343,1776.5,1776.4,4.99612151]
[1680490021931,4.74007071,1776.5,1776.4,4.99612151]
[1680490022131,7.74361564,1776.5,1776.4,4.99612151]
[1680490022300,7.74561564,1776.5,1776.4,4.99612151]
[1680490024436,7.73983703,1776.5,1776.4,5.00212151]
[1680490024728,7.73983703,1776.5,1776.4,5.00412151]
[1680490026197,9.01898512,1776.5,1776.4,5.00412151]
[1680490028864,9.56937992,1776.5,1776.4,5.00412151]
[1680490029744,9.56937992,1776.5,1776.4,5.00212151]
[1680490030846,9.56937992,1776.5,1776.4,5.00412151]
[1680490031930,9.56937992,1776.5,1776.4,5.00212151]
[1680490034142,9.56937992,1776.5,1776.4,5.00012151]
[1680490034929,6.35944264,1776.5,1776.4,5.00012151]
[1680490035452,6.50016264,1776.5,1776.4,5.00012151]
[1680490036057,10.13227992,1776.5,1776.4,5.00012151]
[1680490036230,10.13582485,1776.5,1776.4,4.99812151]
[1680490036432,11.40382485,1776.5,1776.4,4.99612151]
[1680490036763,14.08913894,1776.5,1776.4,4.99612151]
[1680490036917,13.49791237,1776.5,1776.4,4.99612151]
[1680490037257,13.49791237,1776.5,1776.3,0.008]
[1680490037258,1.84979124,1776.4,1776.3,0.008]
[1680490037422,12.9314642,1776.4,1776.0,0.1]
[1680490037624,1.426,1776.1,1776.0,0.1]
[1680490038052,1.426,1776.1,1776.0,0.102]
[1680490039258,0.71,1776.1,1776.0,0.102]
[1680490039463,0.71,1776.1,1776.0,0.1]
[1680490040323,0.866675,1776.1,1776.0,0.1]
[1680490042161,0.14075,1776.2,1776.0,0.1]
[1680490042376,1.269,1776.1,1776.0,0.1]
[1680490048257,1.69126,1776.1,1776.0,0.1]
[1680490048443,1.916686,1776.1,1776.0,0.1]
[1680490048666,1.494426,1776.1,1776.0,0.1]
[1680490049298,1.269,1776.1,1776.0,0.1]
[1680490049794,0.14075,1776.2,1776.0,0.1]
[1680490056897,4.68122,1776.3,1776.0,0.1]
[1680490057099,0.14075,1776.2,1776.0,0.1]
[1680490058666,7.61341069,1776.3,1776.0,0.1]
[1680490059002,0.76134107,1776.2,1776.0,0.1]
[1680490059301,0.90209107,1776.2,1776.0,0.1]
[1680490059964,0.76134107,1776.2,1776.0,0.1]
[1680490061268,0.90209107,1776.2,1776.0,0.1]
[1680490062185,2.16109107,1776.2,1776.0,0.1]
[1680490062379,0.21610911,1776.1,1776.0,0.1]
[1680490062784,3.21610911,1776.1,1776.0,0.1]
[1680490062990,0.21610911,1776.1,1776.0,0.1]
[1680490066316,0.35685911,1776.1,1776.0,0.1]
[1680490067107,0.21610911,1776.1,1776.0,0.1]
[1680490072374,0.76134107,1776.2,1776.0,0.1]
[1680490073996,4.271,1776.3,1776.0,0.1228979]
[1680490074193,4.269,1776.3,1776.0,0.1228979]
[1680490076419,4.40974,1776.3,1776.0,0.1228979]
[1680490078583,4.40974,1776.3,1776.0,0.1]
[1680490080591,4.99920854,1776.3,1776.0,0.1]
[1680490080825,5.76549485,1776.3,1776.0,0.1]
[1680490081020,5.76749485,1776.3,1776.0,0.1]
[1680490081393,5.17802631,1776.3,1776.0,0.1]
[1680490082016,3.90902631,1776.3,1776.0,0.1]
[1680490082234,3.90702631,1776.3,1776.0,0.1]
[1680490082534,4.49649485,1776.3,1776.0,0.1]
[1680490083734,4.35575485,1776.3,1776.0,0.1]
[1680490084418,4.49649485,1776.3,1776.0,0.1]
[1680490084625,0.44964949,1776.2,1776.0,0.1]
[1680490089355,3.0,1776.3,1776.0,0.1]
[1680490092754,5.22555271,1776.4,1776.0,0.1]
[1680490092946,5.22200778,1776.4,1776.0,0.1]
[1680490093473,5.08127778,1776.4,1776.0,0.1]
[1680490093757,5.22200778,1776.4,1776.0,0.1]
[1680490093963,0.52220078,1776.3,1776.0,0.1]
[1680490094162,3.52220078,1776.3,1776.0,0.1]
[1680490096761,3.94442078,1776.3,1776.0,0.1]
[1680490096965,3.66294078,1776.3,1776.0,0.1]
[1680490097486,4.25240932,1776.3,1776.0,0.1]
[1680490097762,0.42524093,1776.2,1776.0,0.1]
[1680490107480,9.73626932,1776.3,1776.0,0.4044179]
[1680490107648,9.21406854,1776.3,1776.0,0.4044179]
[1680490107976,9.21406854,1776.3,1776.0,2.0935979]
[1680490107977,0.002,1776.3,1776.0,2.0935979]
[1680490108155,11.13446854,1776.5,1776.0,2.0935979]
[1680490108763,11.13446854,1776.5,1776.0,7.2861979]
[1680490108972,11.13446854,1776.5,1776.0,7.2941979]
[1680490109154,11.13446854,1776.5,1776.0,8.12122399]
[1680490109694,3.0,1776.4,1776.0,8.12122399]
[1680490110014,3.0,1776.4,1776.0,6.99510399]
[1680490111277,3.0,1776.4,1776.0,6.40914609]
[1680490113050,3.0,1776.4,1776.0,5.58212]
[1680490119766,3.0,1776.4,1776.0,5.3006]
[1680490120682,3.0,1776.4,1776.0,5.58213]
[1680490122325,3.71,1776.4,1776.0,5.58213]
[1680490124583,3.70742735,1776.4,1776.0,6.14519]
[1680490124795,2.99742735,1776.4,1776.1,0.614519]
[1680490125122,2.99742735,1776.4,1776.2,0.28149]
[1680490125718,2.99742735,1776.4,1776.1,0.620519]
[1680490125921,2.99742735,1776.4,1776.1,0.896019]
[1680490126082,2.99742735,1776.4,1776.1,0.898019]
[1680490126515,2.99742735,1776.4,1776.1,1.463049]
[1680490126708,2.99742735,1776.4,1776.1,1.465049]
[1680490127930,2.99742735,1776.4,1776.2,0.1465049]
[1680490128138,2.99742735,1776.4,1776.2,0.4279849]
[1680490128306,3.73330103,1776.5,1776.2,0.4279849]
[1680490128508,3.73130103,1776.5,1776.2,0.4279849]
[1680490129300,3.73130103,1776.5,1776.2,0.1465049]
[1680490129510,3.73130103,1776.5,1776.2,0.28149]
[1680490130255,3.73130103,1776.5,1776.1,0.896019]
[1680490131368,3.73130103,1776.5,1776.1,1.459049]
[1680490133054,3.73130103,1776.5,1776.1,0.896019]
[1680490133254,0.708,1776.4,1776.0,0.108]
[1680490133459,0.708,1776.4,1776.0,0.38152]
[1680490138465,0.708,1776.4,1776.0,0.94458]
[1680490151327,1.29746854,1776.4,1776.0,0.94458]
[1680490153217,1.29746854,1776.4,1776.0,1.25214822]
[1680490153541,1.29746854,1776.4,1776.0,1.25414822]
[1680490154104,1.29746854,1776.4,1776.0,1.25614822]
[1680490154716,0.58946854,1776.4,1776.0,1.25614822]
[1680490155024,1.56666291,1776.4,1776.0,1.25414822]
[1680490156730,1.56666291,1776.4,1776.0,1.25614822]
[1680490159030,1.56666291,1776.4,1776.0,1.25414822]
[1680490159630,1.56666291,1776.4,1776.0,0.94658]
[1680490159931,1.56666291,1776.4,1776.0,0.94458]
[1680490160430,1.56666291,1776.4,1776.0,0.38152]
[1680490166078,1.56666291,1776.4,1776.0,0.94458]
[1680490169067,1.56666291,1776.4,1776.0,0.38152]
[1680490169252,2.19739649,1776.4,1776.0,0.38152]
[1680490169459,4.22020212,1776.4,1776.0,0.38152]
[1680490170554,4.22020212,1776.4,1776.0,0.38352]
[1680490171882,4.22020212,1776.4,1776.0,0.38152]
[1680490176242,4.17020212,1776.4,1776.0,0.38152]
[1680490176482,0.41702021,1776.3,1776.0,0.38152]
[1680490177147,3.53946854,1776.4,1776.0,0.38152]
[1680490177347,0.53946854,1776.4,1776.0,0.38152]
[1680490177547,1.51670336,1776.4,1776.0,0.38152]
[1680490177748,4.51670336,1776.4,1776.0,0.38152]
[1680490177949,3.53946854,1776.4,1776.0,0.38152]
[1680490178149,1.06748268,1776.4,1776.0,0.38152]
[1680490178449,4.06748268,1776.4,1776.0,0.38152]
[1680490179447,4.20821268,1776.4,1776.0,0.1]
[1680490179856,1.11799743,1776.3,1776.0,0.1]
[1680490180079,0.14074,1776.3,1776.0,0.1]
[1680490180299,1.55878945,1776.3,1776.0,0.1]
[1680490180501,7.48729673,1776.3,1776.0,0.1]
[1680490180717,1.417,1776.1,1776.0,0.1]
[1680490180924,6.16744231,1776.1,1776.0,0.1]
[1680490181227,9.16944231,1776.1,1776.0,0.1]
[1680490181383,11.3466199,1776.1,1775.9,0.1]
[1680490181578,7.84594785,1776.0,1775.9,0.1]
[1680490181784,18.17434785,1776.0,1775.9,0.1]
[1680490182798,19.35382735,1776.0,1775.9,0.1]
[1680490183382,18.17434785,1776.0,1775.9,0.1]
[1680490183589,21.80673702,1776.0,1775.9,0.1]
[1680490184006,21.80973702,1776.0,1775.9,0.1]
[1680490184213,24.5975043,1776.0,1775.9,0.1]
[1680490186232,25.18628221,1776.0,1775.9,0.1]
[1680490186398,25.75405966,1776.0,1775.9,0.1]
[1680490187427,24.18789672,1776.0,1775.9,0.1]
[1680490194806,24.90289672,1776.0,1775.9,0.1]
[1680490195318,25.13289672,1776.0,1775.9,0.1]
[1680490196442,24.41789672,1776.0,1775.9,0.1]
[1680490197120,24.18789672,1776.0,1775.9,0.1]
[1680490198111,24.32881258,1776.0,1775.9,0.1]
[1680490204064,24.32881258,1776.0,1775.9,0.09753945]
[1680490205065,26.03232948,1776.0,1775.9,0.09753945]
[1680490209495,25.31732948,1776.0,1775.9,0.09753945]
[1680490211175,26.03232948,1776.0,1775.9,0.09753945]
[1680490215373,27.0099739,1776.0,1775.9,0.09753945]
[1680490216541,27.59875181,1776.0,1775.9,0.09753945]
[1680490221171,29.36104617,1776.0,1775.9,0.09753945]
[1680490221373,27.89458473,1776.0,1775.9,0.09753945]
[1680490222879,28.1894534,1776.0,1775.9,0.09753945]
[1680490223279,29.66219979,1776.0,1775.9,0.09753945]
[1680490223577,28.48272029,1776.0,1775.9,0.09753945]
[1680490223981,31.29803029,1776.0,1775.9,0.09753945]
[1680490224142,33.47449173,1776.0,1775.9,0.09373332]
[1680490224741,33.47590099,1776.0,1775.9,0.09373332]
[1680490224966,30.66059099,1776.0,1775.9,0.09373332]
[1680490225146,29.19412955,1776.0,1775.9,0.09373332]
[1680490225344,31.16409414,1776.0,1775.9,0.09373332]
[1680490225767,31.16409414,1776.0,1775.9,0.00073332]
[1680490225966,29.41643534,1776.0,1775.9,0.00073332]
[1680490226167,30.00388552,1776.0,1775.9,0.00073332]
[1680490226594,32.04287059,1776.0,1775.9,0.00073332]
[1680490227763,30.00388552,1776.0,1775.9,0.00073332]
[1680490233591,31.77446891,1776.0,1775.9,0.00073332]
[1680490234011,43.03646891,1776.0,1775.9,0.00073332]
[1680490235295,41.26588552,1776.0,1775.9,0.00073332]
[1680490241852,43.03581825,1776.0,1775.9,0.00073332]
[1680490242225,41.26588552,1776.0,1775.9,0.00073332]
[1680490242423,43.03581837,1776.0,1775.9,0.00073332]
[1680490242660,43.03581979,1776.0,1775.9,0.00073332]
[1680490243829,43.31824313,1776.0,1775.9,0.00073332]
[1680490244261,41.54830886,1776.0,1775.9,0.00073332]
[1680490244637,43.31822195,1776.0,1775.9,0.00073332]
[1680490245038,41.54830886,1776.0,1775.9,0.00073332]
[1680490245350,43.3182207,1776.0,1775.9,0.00073332]
[1680490252570,9.6197014,1775.6,1775.5,0.1]
[1680490254502,10.79962846,1775.6,1775.5,0.1]
[1680490257737,9.91468317,1775.6,1775.5,0.1]
[1680490260432,12.80659199,1775.6,1775.5,0.1]
[1680490261813,11.62666493,1775.6,1775.5,0.1]
[1680490262427,10.91766493,1775.6,1775.5,0.1]
[1680490271275,10.91766493,1775.6,1775.5,0.0978205]
[1680490271794,9.44275611,1775.6,1775.5,0.0978205]
[1680490272080,8.73475611,1775.6,1775.5,0.0978205]
[1680490272579,10.21153591,1775.6,1775.5,0.0978205]
[1680490273145,10.21153591,1775.6,1775.5,0.08373995]
[1680490274159,8.73475611,1775.6,1775.5,0.08373995]
[1680490274573,6.44195616,1775.6,1775.5,0.08373995]
[1680490274774,5.16091581,1775.6,1775.5,0.08373995]
[1680490274974,5.16091581,1775.6,1775.5,0.79873995]
[1680490274975,1.86557981,1775.6,1775.5,0.79873995]
[1680490275189,0.88593539,1775.6,1775.5,0.79873995]
[1680490275391,0.88593539,1775.6,1775.5,1.1031124]
[1680490275771,1.56824943,1775.6,1775.5,1.1031124]
[1680490275966,1.56824943,1775.6,1775.5,1.1091124]
[1680490276300,0.59060501,1775.6,1775.5,1.1091124]
[1680490277202,3.59060501,1775.7,1775.5,1.1091124]
[1680490280702,3.73139501,1775.7,1775.5,1.1091124]
[1680490280902,3.73139501,1775.7,1775.5,0.3941124]
[1680490280903,2.92855728,1775.6,1775.5,0.3941124]
[1680490281102,7.79221459,1775.6,1775.5,0.3921124]
[1680490281406,8.38437627,1775.6,1775.5,0.3941124]
[1680490281598,8.93774956,1775.6,1775.5,0.3941124]
[1680490282971,8.79695956,1775.6,1775.5,0.3941124]
[1680490285410,8.93774956,1775.6,1775.5,0.3941124]
[1680490285658,8.79695956,1775.6,1775.5,0.3941124]
[1680490286008,7.65342459,1775.6,1775.5,0.3941124]
[1680490286207,4.56984846,1775.6,1775.5,0.3941124]
[1680490286507,4.56784846,1775.6,1775.5,0.3941124]
[1680490287086,1.56784846,1775.6,1775.5,0.3941124]